[Event "Live Chess"]
[Site "Chess.com"]
[Date "2024.06.01"]
[Round "-"]
[White "MellowAesthetic"]
[Black "Crowded_House"]
[Result "1-0"]
[WhiteElo "2074"]
[BlackElo "1738"]
[TimeControl "300"]
[EndTime "9:37:39 PDT"]
[Termination "MellowAesthetic won by checkmate"]

1. e4 {[%clk 0:04:59.2]} 1... e6 {[%clk 0:04:59.3]} 2. d4 {[%clk 0:04:57.9]}
2... d5 {[%clk 0:04:58.5]} 3. Nd2 {[%clk 0:04:57.2]} 3... dxe4 {[%clk
0:04:57.1]} 4. Nxe4 {[%clk 0:04:57.1]} 4... Bd7 {[%clk 0:04:56.4]} 5. Nf3 {[%clk
0:04:55.8]} 5... Bc6 {[%clk 0:04:56.1]} 6. Bd3 {[%clk 0:04:55.1]} 6... Nd7
{[%clk 0:04:54.3]} 7. Qe2 {[%clk 0:04:53.8]} 7... Ngf6 {[%clk 0:04:53.1]} 8.
Nxf6+ {[%clk 0:04:52.9]} 8... Qxf6 {[%clk 0:04:50.5]} 9. Ne5 {[%clk 0:04:12.8]}
9... Nxe5 {[%clk 0:04:37.6]} 10. dxe5 {[%clk 0:04:11.2]} 10... Qe7 {[%clk
0:04:35.2]} 11. O-O {[%clk 0:03:46.1]} 11... O-O-O {[%clk 0:04:33.7]} 12. Be3
{[%clk 0:02:57.4]} 12... Kb8 {[%clk 0:04:27.5]} 13. a4 {[%clk 0:02:51.1]} 13...
g6 {[%clk 0:04:20.3]} 14. a5 {[%clk 0:02:40.7]} 14... a6 {[%clk 0:04:18.5]} 15.
Bxa6 {[%clk 0:02:22.8]} 15... bxa6 {[%clk 0:04:17]} 16. Qxa6 {[%clk 0:02:22.7]}
16... Bb7 {[%clk 0:04:15.9]} 17. Qa7+ {[%clk 0:02:20.7]} 17... Kc8 {[%clk
0:04:12.9]} 18. a6 {[%clk 0:02:20.2]} 18... c6 {[%clk 0:04:04.6]} 19. axb7+
{[%clk 0:01:30.2]} 19... Qxb7 {[%clk 0:04:02.3]} 20. Qxb7+ {[%clk 0:01:28.1]}
20... Kxb7 {[%clk 0:04:01.4]} 21. Ra7+ {[%clk 0:01:27.8]} 21... Kc8 {[%clk
0:03:54.6]} 22. Rxf7 {[%clk 0:01:21.2]} 22... Rd7 {[%clk 0:03:53.6]} 23. Rxd7
{[%clk 0:01:18.8]} 23... Kxd7 {[%clk 0:03:52.5]} 24. Ra1 {[%clk 0:01:16.9]}
24... Kc7 {[%clk 0:03:35.8]} 25. Ra7+ {[%clk 0:01:14.5]} 25... Kb8 {[%clk
0:03:32.7]} 26. Rf7 {[%clk 0:01:13.5]} 26... h5 {[%clk 0:03:10.3]} 27. Rf6
{[%clk 0:01:10.9]} 27... Rg8 {[%clk 0:03:03.6]} 28. Rxe6 {[%clk 0:01:09.8]}
28... Kc7 {[%clk 0:03:00.9]} 29. Re8 {[%clk 0:01:07.3]} 29... Kd7 {[%clk
0:02:59.2]} 30. Ra8 {[%clk 0:01:06.1]} 30... Ke6 {[%clk 0:02:57.3]} 31. Bc5
{[%clk 0:01:01.5]} 31... Kf7 {[%clk 0:02:48.9]} 32. Rxf8+ {[%clk 0:01:00]} 32...
Rxf8 {[%clk 0:02:48.6]} 33. Bxf8 {[%clk 0:00:59.4]} 33... Kxf8 {[%clk
0:02:48.2]} 34. f4 {[%clk 0:00:58.7]} 34... Ke7 {[%clk 0:02:47.3]} 35. Kf2
{[%clk 0:00:58.1]} 35... Ke6 {[%clk 0:02:46.8]} 36. Ke3 {[%clk 0:00:56.8]} 36...
Kf5 {[%clk 0:02:45.8]} 37. b4 {[%clk 0:00:53.6]} 37... Ke6 {[%clk 0:02:44.9]}
38. c4 {[%clk 0:00:52.4]} 38... Kd7 {[%clk 0:02:42.6]} 39. h3 {[%clk 0:00:50.4]}
39... Ke6 {[%clk 0:02:41.7]} 40. g4 {[%clk 0:00:49.6]} 40... hxg4 {[%clk
0:02:40.4]} 41. hxg4 {[%clk 0:00:49.5]} 41... Ke7 {[%clk 0:02:39.1]} 42. Ke4
{[%clk 0:00:49.1]} 42... Ke6 {[%clk 0:02:38.2]} 43. f5+ {[%clk 0:00:48.7]} 43...
gxf5+ {[%clk 0:02:37.5]} 44. gxf5+ {[%clk 0:00:48.6]} 44... Ke7 {[%clk 0:02:37]}
45. Kd4 {[%clk 0:00:48.2]} 45... Kd7 {[%clk 0:02:36.5]} 46. Kc5 {[%clk
0:00:47.8]} 46... Kc7 {[%clk 0:02:35.7]} 47. e6 {[%clk 0:00:47.3]} 47... Kd8
{[%clk 0:02:35]} 48. Kxc6 {[%clk 0:00:46.2]} 48... Ke7 {[%clk 0:02:34.2]} 49.
Kd5 {[%clk 0:00:44.9]} 49... Ke8 {[%clk 0:02:32.7]} 50. Ke4 {[%clk 0:00:44.3]}
50... Kf8 {[%clk 0:02:32.1]} 51. Ke5 {[%clk 0:00:43.6]} 51... Ke7 {[%clk
0:02:31.8]} 52. f6+ {[%clk 0:00:43]} 52... Ke8 {[%clk 0:02:31.4]} 53. c5 {[%clk
0:00:42.4]} 53... Kf8 {[%clk 0:02:30.9]} 54. b5 {[%clk 0:00:41.8]} 54... Ke8
{[%clk 0:02:30.6]} 55. c6 {[%clk 0:00:41.2]} 55... Kd8 {[%clk 0:02:30.4]} 56. b6
{[%clk 0:00:40.5]} 56... Kc8 {[%clk 0:02:30]} 57. Kd6 {[%clk 0:00:39.1]} 57...
Kd8 {[%clk 0:02:29.2]} 58. Kc5 {[%clk 0:00:38.5]} 58... Ke8 {[%clk 0:02:28.9]}
59. Kb4 {[%clk 0:00:38]} 59... Kf8 {[%clk 0:02:28]} 60. Ka3 {[%clk 0:00:37.6]}
60... Ke8 {[%clk 0:02:27.5]} 61. Kb2 {[%clk 0:00:37.2]} 61... Kd8 {[%clk
0:02:27.3]} 62. Kc1 {[%clk 0:00:36.8]} 62... Kc8 {[%clk 0:02:27]} 63. Kd2 {[%clk
0:00:36.3]} 63... Kb8 {[%clk 0:02:26.7]} 64. Ke1 {[%clk 0:00:35.9]} 64... Kc8
{[%clk 0:02:26.5]} 65. Kf2 {[%clk 0:00:35.5]} 65... Kd8 {[%clk 0:02:26.3]} 66.
Kg1 {[%clk 0:00:35.1]} 66... Ke8 {[%clk 0:02:26.1]} 67. Kh1 {[%clk 0:00:34.7]}
67... Kd8 {[%clk 0:02:25.9]} 68. Kg2 {[%clk 0:00:34.3]} 68... Ke8 {[%clk
0:02:24.2]} 69. Kh3 {[%clk 0:00:33.9]} 69... Kf8 {[%clk 0:02:23.9]} 70. Kg4
{[%clk 0:00:33.5]} 70... Kg8 {[%clk 0:02:23.3]} 71. Kh5 {[%clk 0:00:33]} 71...
Kh7 {[%clk 0:02:23]} 72. b7 {[%clk 0:00:31.1]} 72... Kg8 {[%clk 0:02:22]} 73. c7
{[%clk 0:00:30.5]} 73... Kh7 {[%clk 0:02:21.7]} 74. Kg5 {[%clk 0:00:29.6]} 74...
Kg8 {[%clk 0:02:21.5]} 75. Kf5 {[%clk 0:00:29.2]} 75... Kh7 {[%clk 0:02:21.2]}
76. b8=Q {[%clk 0:00:24.9]} 76... Kh6 {[%clk 0:02:20]} 77. c8=Q {[%clk
0:00:21.3]} 77... Kh5 {[%clk 0:02:18.9]} 78. Qg3 {[%clk 0:00:12.9]} 78... Kh6
{[%clk 0:02:17.3]} 79. e7 {[%clk 0:00:10.1]} 79... Kh7 {[%clk 0:02:16.9]} 80.
e8=Q {[%clk 0:00:07.5]} 80... Kh6 {[%clk 0:02:16.6]} 81. f7 {[%clk 0:00:05.3]}
81... Kh7 {[%clk 0:02:16.2]} 82. Qcd8 {[%clk 0:00:03.5]} 82... Kh6 {[%clk
0:02:15.7]} 83. f8=Q+ {[%clk 0:00:02.8]} 83... Kh7 {[%clk 0:02:13.9]} 84. Qeg6#
{[%clk 0:00:02.1]} 1-0

[Event "Live Chess"]
[Site "Chess.com"]
[Date "2024.06.01"]
[Round "-"]
[White "vincents82"]
[Black "Andysav3"]
[Result "1/2-1/2"]
[WhiteElo "2132"]
[BlackElo "1842"]
[TimeControl "300"]
[EndTime "9:37:39 PDT"]
[Termination "Game drawn by repetition"]

1. e4 {[%clk 0:04:55.7]} 1... c5 {[%clk 0:04:57.2]} 2. Nf3 {[%clk 0:04:54.2]}
2... b6 {[%clk 0:04:55.2]} 3. d4 {[%clk 0:04:51.9]} 3... cxd4 {[%clk 0:04:53.6]}
4. Nxd4 {[%clk 0:04:51.3]} 4... Bb7 {[%clk 0:04:53]} 5. Nc3 {[%clk 0:04:48.5]}
5... g6 {[%clk 0:04:46.9]} 6. Be3 {[%clk 0:04:46.5]} 6... Bg7 {[%clk 0:04:45.5]}
7. Be2 {[%clk 0:04:45.5]} 7... Nc6 {[%clk 0:04:37.1]} 8. O-O {[%clk 0:04:42.1]}
8... Nf6 {[%clk 0:04:25.1]} 9. Qd2 {[%clk 0:04:32.8]} 9... O-O {[%clk
0:04:08.3]} 10. f3 {[%clk 0:04:31.3]} 10... d6 {[%clk 0:03:43.2]} 11. Rad1
{[%clk 0:04:27]} 11... Nd7 {[%clk 0:03:32.5]} 12. Nxc6 {[%clk 0:04:21.2]} 12...
Bxc6 {[%clk 0:03:31.2]} 13. Nd5 {[%clk 0:04:19.1]} 13... Nc5 {[%clk 0:03:22.8]}
14. c4 {[%clk 0:04:15]} 14... Bxd5 {[%clk 0:03:15.4]} 15. exd5 {[%clk
0:04:09.5]} 15... Rc8 {[%clk 0:03:03.9]} 16. b4 {[%clk 0:04:08.1]} 16... Nd7
{[%clk 0:02:56.3]} 17. Rc1 {[%clk 0:04:07]} 17... Nf6 {[%clk 0:02:43.4]} 18. Bd3
{[%clk 0:04:00.9]} 18... Qd7 {[%clk 0:02:41.4]} 19. Rfe1 {[%clk 0:03:58.1]}
19... Rfe8 {[%clk 0:02:31.6]} 20. Be4 {[%clk 0:03:49.4]} 20... Qa4 {[%clk
0:02:24.8]} 21. Qc2 {[%clk 0:03:40.8]} 21... Qxb4 {[%clk 0:02:15]} 22. Bd3
{[%clk 0:03:33.7]} 22... Nxd5 {[%clk 0:02:05.3]} 23. Qf2 {[%clk 0:03:32.5]}
23... Nxe3 {[%clk 0:02:00.8]} 24. Qxe3 {[%clk 0:03:31.7]} 24... Qc5 {[%clk
0:01:56.2]} 25. Qxc5 {[%clk 0:03:28.9]} 25... bxc5 {[%clk 0:01:50.3]} 26. Rb1
{[%clk 0:03:27.7]} 26... Rb8 {[%clk 0:01:49.1]} 27. Kf1 {[%clk 0:03:26.6]} 27...
Kf8 {[%clk 0:01:47.5]} 28. Rxb8 {[%clk 0:03:23.3]} 28... Rxb8 {[%clk 0:01:45.7]}
29. Rb1 {[%clk 0:03:22.6]} 29... Rxb1+ {[%clk 0:01:41.2]} 30. Bxb1 {[%clk
0:03:21.6]} 30... Ke8 {[%clk 0:01:39.8]} 31. Ke2 {[%clk 0:03:21]} 31... Kd7
{[%clk 0:01:39]} 32. g4 {[%clk 0:03:15.8]} 32... e6 {[%clk 0:01:37.9]} 33. Kd3
{[%clk 0:03:15.3]} 33... Kc6 {[%clk 0:01:37]} 34. Bc2 {[%clk 0:03:14]} 34... d5
{[%clk 0:01:36]} 35. h4 {[%clk 0:03:03.2]} 35... h5 {[%clk 0:01:34.1]} 36. gxh5
{[%clk 0:03:01.6]} 36... gxh5 {[%clk 0:01:32.8]} 37. Bd1 {[%clk 0:02:54.8]}
37... Bf6 {[%clk 0:01:23.7]} 38. f4 {[%clk 0:02:53.8]} 38... Bxh4 {[%clk
0:01:22.8]} 39. Bxh5 {[%clk 0:02:52.9]} 39... f6 {[%clk 0:01:20.5]} 40. f5
{[%clk 0:02:44.4]} 40... e5 {[%clk 0:01:14.8]} 41. cxd5+ {[%clk 0:02:40.8]}
41... Kxd5 {[%clk 0:01:13.9]} 42. Bf3+ {[%clk 0:02:40]} 42... Kd6 {[%clk
0:01:12.6]} 43. Kc4 {[%clk 0:02:38]} 43... Bf2 {[%clk 0:01:10.2]} 44. Bd5 {[%clk
0:02:36.1]} 44... Bd4 {[%clk 0:01:06.9]} 45. Be4 {[%clk 0:02:35.1]} 45... a6
{[%clk 0:01:04.2]} 46. a4 {[%clk 0:02:33]} 46... a5 {[%clk 0:00:59.4]} 47. Bd5
{[%clk 0:02:31.6]} 47... Be3 {[%clk 0:00:52.4]} 48. Be4 {[%clk 0:02:30.5]} 48...
Bd2 {[%clk 0:00:51.4]} 49. Bd5 {[%clk 0:02:29.2]} 49... Bb4 {[%clk 0:00:51]} 50.
Be4 {[%clk 0:02:28.2]} 50... Bd2 {[%clk 0:00:50.6]} 51. Bd5 {[%clk 0:02:27.1]}
51... Bb4 {[%clk 0:00:50.3]} 52. Be4 {[%clk 0:02:26.5]} 52... Bd2 {[%clk
0:00:50]} 1/2-1/2

[Event "Live Chess"]
[Site "Chess.com"]
[Date "2024.06.01"]
[Round "-"]
[White "DJ_Lambton"]
[Black "hapehansen"]
[Result "1/2-1/2"]
[WhiteElo "1751"]
[BlackElo "2245"]
[TimeControl "300"]
[EndTime "9:37:41 PDT"]
[Termination "Game drawn - insufficient material"]

1. c4 {[%clk 0:04:59.5]} 1... e6 {[%clk 0:04:55.8]} 2. g3 {[%clk 0:04:58.7]}
2... d5 {[%clk 0:04:53.8]} 3. Bg2 {[%clk 0:04:57.6]} 3... Nf6 {[%clk 0:04:51.8]}
4. Nf3 {[%clk 0:04:54.5]} 4... Be7 {[%clk 0:04:45.9]} 5. O-O {[%clk 0:04:53.2]}
5... O-O {[%clk 0:04:45.3]} 6. b3 {[%clk 0:04:51.6]} 6... d4 {[%clk 0:04:42]} 7.
Bb2 {[%clk 0:04:50.9]} 7... c5 {[%clk 0:04:39.9]} 8. d3 {[%clk 0:04:50.4]} 8...
Nc6 {[%clk 0:04:37.8]} 9. Nbd2 {[%clk 0:04:50]} 9... e5 {[%clk 0:04:33.8]} 10.
a3 {[%clk 0:04:45.9]} 10... Re8 {[%clk 0:04:24.5]} 11. Re1 {[%clk 0:04:45.3]}
11... a5 {[%clk 0:04:19.8]} 12. e3 {[%clk 0:04:43.4]} 12... Bf8 {[%clk
0:04:01.3]} 13. exd4 {[%clk 0:04:40.7]} 13... cxd4 {[%clk 0:03:57]} 14. Ne4
{[%clk 0:04:39.4]} 14... Nxe4 {[%clk 0:03:53.5]} 15. Rxe4 {[%clk 0:04:39.3]}
15... Bf5 {[%clk 0:03:45.5]} 16. Re2 {[%clk 0:04:38]} 16... Qd7 {[%clk
0:03:34.9]} 17. Qd2 {[%clk 0:04:36.5]} 17... Bg4 {[%clk 0:03:27.7]} 18. Rae1
{[%clk 0:04:34.8]} 18... f6 {[%clk 0:03:26]} 19. h3 {[%clk 0:04:33.2]} 19... Bh5
{[%clk 0:03:06.7]} 20. Kh2 {[%clk 0:04:30.5]} 20... Rad8 {[%clk 0:03:01]} 21.
Re4 {[%clk 0:03:57.7]} 21... Bc5 {[%clk 0:02:55.7]} 22. Rh4 {[%clk 0:03:56.3]}
22... Bf7 {[%clk 0:02:40.5]} 23. Bc1 {[%clk 0:03:51.5]} 23... Qd6 {[%clk
0:02:35.4]} 24. Qe2 {[%clk 0:03:50.2]} 24... Bxa3 {[%clk 0:02:28.7]} 25. Qe4
{[%clk 0:03:49.1]} 25... f5 {[%clk 0:02:09.1]} 26. Qxf5 {[%clk 0:03:40.6]} 26...
Bg6 {[%clk 0:02:08]} 27. Qg5 {[%clk 0:03:31.3]} 27... Bxc1 {[%clk 0:02:04.8]}
28. Rxc1 {[%clk 0:03:31.2]} 28... Qf6 {[%clk 0:01:49.5]} 29. Qxf6 {[%clk
0:03:29.6]} 29... gxf6 {[%clk 0:01:46.5]} 30. Re1 {[%clk 0:03:29.2]} 30... Bxd3
{[%clk 0:01:42.4]} 31. Nd2 {[%clk 0:03:24.1]} 31... Bg6 {[%clk 0:01:36]} 32. Rg4
{[%clk 0:03:19.1]} 32... f5 {[%clk 0:01:28.5]} 33. Rg5 {[%clk 0:03:17.9]} 33...
e4 {[%clk 0:01:16.5]} 34. h4 {[%clk 0:03:16.1]} 34... Kh8 {[%clk 0:01:14.1]} 35.
h5 {[%clk 0:03:13.9]} 35... Bf7 {[%clk 0:01:13]} 36. Rh1 {[%clk 0:03:12.3]}
36... Re5 {[%clk 0:01:05.5]} 37. Bh3 {[%clk 0:03:09.8]} 37... Be6 {[%clk
0:01:00.3]} 38. Kg2 {[%clk 0:03:06.9]} 38... Rg8 {[%clk 0:00:57.9]} 39. Rxg8+
{[%clk 0:03:05.4]} 39... Kxg8 {[%clk 0:00:57.8]} 40. Ra1 {[%clk 0:02:58]} 40...
Kg7 {[%clk 0:00:54]} 41. Re1 {[%clk 0:02:52.1]} 41... Kh6 {[%clk 0:00:52.5]} 42.
Kg1 {[%clk 0:02:48.5]} 42... Kxh5 {[%clk 0:00:50.9]} 43. Bf1 {[%clk 0:02:47.6]}
43... d3 {[%clk 0:00:48]} 44. Kg2 {[%clk 0:02:45.5]} 44... Kg5 {[%clk
0:00:46.4]} 45. f3 {[%clk 0:02:42.2]} 45... exf3+ {[%clk 0:00:36.8]} 46. Nxf3+
{[%clk 0:02:40.1]} 46... Kf6 {[%clk 0:00:36.4]} 47. Nxe5 {[%clk 0:02:38.9]}
47... Nxe5 {[%clk 0:00:36.3]} 48. Rd1 {[%clk 0:02:37]} 48... a4 {[%clk
0:00:30.3]} 49. Bxd3 {[%clk 0:02:32.4]} 49... Nxd3 {[%clk 0:00:28.7]} 50. Rxd3
{[%clk 0:02:31.5]} 50... axb3 {[%clk 0:00:28.4]} 51. Rxb3 {[%clk 0:02:30.8]}
51... Bxc4 {[%clk 0:00:27.3]} 52. Rxb7 {[%clk 0:02:30]} 52... Kg5 {[%clk
0:00:26.9]} 53. Rxh7 {[%clk 0:02:28.9]} 53... Bd5+ {[%clk 0:00:25.1]} 54. Kf2
{[%clk 0:02:28.1]} 54... Be4 {[%clk 0:00:23.8]} 55. Rg7+ {[%clk 0:02:27.2]}
55... Kf6 {[%clk 0:00:22.5]} 56. Rg8 {[%clk 0:02:25.8]} 56... Kf7 {[%clk
0:00:21.5]} 57. Rb8 {[%clk 0:02:24.3]} 57... Kf6 {[%clk 0:00:21]} 58. Rb6+
{[%clk 0:02:23.4]} 58... Kg5 {[%clk 0:00:20.1]} 59. Rb3 {[%clk 0:02:22]} 59...
Kg4 {[%clk 0:00:19.2]} 60. Re3 {[%clk 0:02:21]} 60... Kg5 {[%clk 0:00:18.1]} 61.
Ke2 {[%clk 0:02:20.4]} 61... Kg4 {[%clk 0:00:17.4]} 62. Kd2 {[%clk 0:02:19.9]}
62... Bf3 {[%clk 0:00:16.4]} 63. Kc3 {[%clk 0:02:19.1]} 63... Kxg3 {[%clk
0:00:15.1]} 64. Kd4 {[%clk 0:02:18.1]} 64... f4 {[%clk 0:00:13.8]} 65. Re5
{[%clk 0:02:17.4]} 65... Kg4 {[%clk 0:00:12.7]} 66. Re8 {[%clk 0:02:16.4]} 66...
Bg2 {[%clk 0:00:11.2]} 67. Rg8+ {[%clk 0:02:15.7]} 67... Kh3 {[%clk 0:00:08.6]}
68. Rf8 {[%clk 0:02:14.8]} 68... f3 {[%clk 0:00:07.4]} 69. Ke3 {[%clk
0:02:14.2]} 69... Kg3 {[%clk 0:00:06.7]} 70. Rg8+ {[%clk 0:02:13.7]} 70... Kh4
{[%clk 0:00:05.6]} 71. Rf8 {[%clk 0:02:13.2]} 71... Kh5 {[%clk 0:00:04.3]} 72.
Rxf3 {[%clk 0:02:12.2]} 72... Bxf3 {[%clk 0:00:02.4]} 1/2-1/2

[Event "Live Chess"]
[Site "Chess.com"]
[Date "2024.06.01"]
[Round "-"]
[White "NottheBishopSacrifice"]
[Black "RamsayFlayer"]
[Result "1-0"]
[WhiteElo "2138"]
[BlackElo "1962"]
[TimeControl "300"]
[EndTime "9:37:43 PDT"]
[Termination "NottheBishopSacrifice won by resignation"]

1. Nf3 {[%clk 0:04:58.2]} 1... d5 {[%clk 0:04:58.6]} 2. e3 {[%clk 0:04:57.8]}
2... c5 {[%clk 0:04:57.3]} 3. Be2 {[%clk 0:04:57.4]} 3... Nc6 {[%clk 0:04:56.7]}
4. O-O {[%clk 0:04:55.6]} 4... e5 {[%clk 0:04:54.1]} 5. b3 {[%clk 0:04:55.2]}
5... Nf6 {[%clk 0:04:52.5]} 6. d3 {[%clk 0:04:53.3]} 6... Bd6 {[%clk 0:04:48.2]}
7. c4 {[%clk 0:04:52.2]} 7... e4 {[%clk 0:04:43.4]} 8. dxe4 {[%clk 0:04:47.4]}
8... dxe4 {[%clk 0:04:43.3]} 9. Ng5 {[%clk 0:04:44.8]} 9... h6 {[%clk
0:04:37.1]} 10. Nh3 {[%clk 0:04:37.3]} 10... Bxh3 {[%clk 0:04:35.7]} 11. gxh3
{[%clk 0:04:37.2]} 11... Qc7 {[%clk 0:04:30.2]} 12. Nc3 {[%clk 0:04:34]} 12...
Bxh2+ {[%clk 0:04:27.9]} 13. Kh1 {[%clk 0:04:33.5]} 13... Rd8 {[%clk 0:04:17.6]}
14. Qc2 {[%clk 0:04:31.5]} 14... Qe5 {[%clk 0:04:05.9]} 15. Bb2 {[%clk
0:04:27.7]} 15... O-O {[%clk 0:03:46.5]} 16. Nd5 {[%clk 0:04:25.3]} 16... Qd6
{[%clk 0:03:34.3]} 17. Nxf6+ {[%clk 0:04:21.3]} 17... gxf6 {[%clk 0:03:32.7]}
18. Qxe4 {[%clk 0:04:20.9]} 18... Be5 {[%clk 0:03:25.1]} 19. Bxe5 {[%clk
0:04:18.5]} 19... Qxe5 {[%clk 0:03:18.9]} 20. Rg1+ {[%clk 0:04:16.7]} 20... Kh8
{[%clk 0:03:16.9]} 21. Qh4 {[%clk 0:04:14.8]} 21... Kh7 {[%clk 0:02:59.6]} 22.
Bf3 {[%clk 0:04:11.6]} 22... Ne7 {[%clk 0:02:51.3]} 23. Qe4+ {[%clk 0:04:01.4]}
23... Qxe4 {[%clk 0:02:49.1]} 24. Bxe4+ {[%clk 0:04:01.3]} 24... f5 {[%clk
0:02:48.1]} 25. Bxb7 {[%clk 0:04:01.2]} 25... Rd2 {[%clk 0:02:44.6]} 26. Rg2
{[%clk 0:03:59.7]} 26... Rfd8 {[%clk 0:02:35.7]} 27. Rag1 {[%clk 0:03:56.9]}
27... Ng6 {[%clk 0:02:34.2]} 28. Bd5 {[%clk 0:03:54.4]} 28... Rd7 {[%clk
0:02:19.9]} 29. h4 {[%clk 0:03:49.7]} 29... h5 {[%clk 0:02:07.3]} 30. Rg5 {[%clk
0:03:47.9]} 30... Rxf2 {[%clk 0:01:53.2]} 31. Rxh5+ {[%clk 0:03:45.6]} 31... Kg7
{[%clk 0:01:51.7]} 32. Rhg5 {[%clk 0:03:45.2]} 32... Rxa2 {[%clk 0:01:38.9]} 33.
h5 {[%clk 0:03:44.1]} 33... Rd8 {[%clk 0:01:38]} 34. R1g2 {[%clk 0:03:39.4]}
34... Ra3 {[%clk 0:01:27]} 35. hxg6 {[%clk 0:03:32.7]} 35... Rh8+ {[%clk
0:01:21.3]} 36. Kg1 {[%clk 0:03:32.1]} 36... fxg6 {[%clk 0:01:14.7]} 37. Rxg6+
{[%clk 0:03:29.3]} 37... Kf8 {[%clk 0:01:14.4]} 38. Rg8+ {[%clk 0:03:28.7]}
38... Rxg8 {[%clk 0:01:12.8]} 39. Rxg8+ {[%clk 0:03:28.6]} 39... Ke7 {[%clk
0:01:12.1]} 40. Rg7+ {[%clk 0:03:28.5]} 40... Kf6 {[%clk 0:01:10.7]} 41. Rf7+
{[%clk 0:03:27.9]} 41... Ke5 {[%clk 0:01:10]} 42. Re7+ {[%clk 0:03:27.4]} 42...
Kf6 {[%clk 0:00:57.2]} 43. Re6+ {[%clk 0:03:26.7]} 43... Kg5 {[%clk 0:00:55.7]}
44. Kf2 {[%clk 0:03:25.9]} 44... Rxb3 {[%clk 0:00:54.1]} 45. Ra6 {[%clk
0:03:24.9]} 45... Rb2+ {[%clk 0:00:50.9]} 46. Kf3 {[%clk 0:03:24.4]} 46... Rb3
{[%clk 0:00:38.3]} 47. Ke2 {[%clk 0:03:20]} 47... f4 {[%clk 0:00:35.3]} 48.
exf4+ {[%clk 0:03:18.6]} 48... Kxf4 {[%clk 0:00:34.8]} 49. Rxa7 {[%clk
0:03:17.4]} 49... Ke5 {[%clk 0:00:33.1]} 50. Re7+ {[%clk 0:03:16.9]} 50... Kd4
{[%clk 0:00:29.7]} 51. Re4+ {[%clk 0:03:15]} 51... Kc3 {[%clk 0:00:28.6]} 52.
Re3+ {[%clk 0:03:14]} 52... Kb4 {[%clk 0:00:25.6]} 53. Rxb3+ {[%clk 0:03:13.9]}
53... Kxb3 {[%clk 0:00:25]} 54. Ke3 {[%clk 0:03:13.8]} 54... Kb4 {[%clk
0:00:23.9]} 55. Ke4 {[%clk 0:03:13.7]} 55... Kc3 {[%clk 0:00:22.3]} 56. Ke5
{[%clk 0:03:13.6]} 56... Kd3 {[%clk 0:00:21.6]} 57. Kd6 {[%clk 0:03:13.5]} 57...
Kd4 {[%clk 0:00:20.4]} 58. Kc6 {[%clk 0:03:12.4]} 1-0

[Event "Live Chess"]
[Site "Chess.com"]
[Date "2024.06.01"]
[Round "-"]
[White "Bradfield133"]
[Black "NAZRIZ1977"]
[Result "0-1"]
[WhiteElo "2026"]
[BlackElo "2129"]
[TimeControl "300"]
[EndTime "9:37:51 PDT"]
[Termination "NAZRIZ1977 won on time"]

1. c4 {[%clk 0:04:57.9]} 1... g6 {[%clk 0:04:57.5]} 2. g3 {[%clk 0:04:56.5]}
2... Bg7 {[%clk 0:04:56.6]} 3. Bg2 {[%clk 0:04:55.3]} 3... Nf6 {[%clk
0:04:55.7]} 4. Nc3 {[%clk 0:04:54.4]} 4... O-O {[%clk 0:04:54.8]} 5. e4 {[%clk
0:04:53.3]} 5... c5 {[%clk 0:04:53.9]} 6. Nge2 {[%clk 0:04:51.8]} 6... Nc6
{[%clk 0:04:52.9]} 7. O-O {[%clk 0:04:50.1]} 7... a6 {[%clk 0:04:50.5]} 8. a3
{[%clk 0:04:49]} 8... Rb8 {[%clk 0:04:48.8]} 9. Rb1 {[%clk 0:04:48.6]} 9... b5
{[%clk 0:04:47.5]} 10. cxb5 {[%clk 0:04:47]} 10... axb5 {[%clk 0:04:46.8]} 11.
b4 {[%clk 0:04:46.1]} 11... cxb4 {[%clk 0:04:46.1]} 12. axb4 {[%clk 0:04:44.2]}
12... d6 {[%clk 0:04:43.7]} 13. d4 {[%clk 0:04:42.2]} 13... e6 {[%clk
0:04:23.9]} 14. Qd3 {[%clk 0:04:23.9]} 14... Ba6 {[%clk 0:04:11.2]} 15. Bd2
{[%clk 0:03:59.3]} 15... e5 {[%clk 0:04:09.1]} 16. d5 {[%clk 0:03:54.7]} 16...
Ne7 {[%clk 0:03:56.4]} 17. Ra1 {[%clk 0:03:45.8]} 17... Qc8 {[%clk 0:03:42.5]}
18. Rfc1 {[%clk 0:03:36]} 18... Qb7 {[%clk 0:03:41.3]} 19. Nb1 {[%clk
0:03:00.1]} 19... Nd7 {[%clk 0:03:35.7]} 20. Na3 {[%clk 0:02:44.5]} 20... f5
{[%clk 0:03:19.8]} 21. f3 {[%clk 0:02:40.3]} 21... f4 {[%clk 0:03:15.7]} 22. Nc3
{[%clk 0:02:36.7]} 22... fxg3 {[%clk 0:03:14.1]} 23. hxg3 {[%clk 0:02:34.2]}
23... Bf6 {[%clk 0:02:53.5]} 24. Bf1 {[%clk 0:02:31.2]} 24... Nb6 {[%clk
0:02:41.4]} 25. Naxb5 {[%clk 0:02:22.9]} 25... Bxb5 {[%clk 0:02:31.5]} 26. Qxb5
{[%clk 0:02:17.7]} 26... Rfc8 {[%clk 0:02:19.1]} 27. Qa6 {[%clk 0:01:31.1]}
27... Qd7 {[%clk 0:02:07.2]} 28. b5 {[%clk 0:01:19.9]} 28... Rc7 {[%clk
0:01:39.7]} 29. Qa2 {[%clk 0:01:08.8]} 29... Nec8 {[%clk 0:01:31.4]} 30. Na4
{[%clk 0:01:01.5]} 30... Nxa4 {[%clk 0:01:18.8]} 31. Qxa4 {[%clk 0:01:01.4]}
31... Rcb7 {[%clk 0:01:18.3]} 32. Be3 {[%clk 0:00:52.3]} 32... Bd8 {[%clk
0:01:13.2]} 33. Rc6 {[%clk 0:00:46]} 33... Nb6 {[%clk 0:01:01.7]} 34. Qd1 {[%clk
0:00:42.9]} 34... Kg7 {[%clk 0:00:54.5]} 35. Qe2 {[%clk 0:00:31.7]} 35... Nc8
{[%clk 0:00:50.8]} 36. Qh2 {[%clk 0:00:29.1]} 36... Ne7 {[%clk 0:00:46.7]} 37.
Bh3 {[%clk 0:00:16.3]} 37... Qe8 {[%clk 0:00:43.7]} 38. Bh6+ {[%clk 0:00:11.3]}
38... Kh8 {[%clk 0:00:41.4]} 39. Be6 {[%clk 0:00:07.2]} 39... Ng8 {[%clk
0:00:37.7]} 40. Rxd6 {[%clk 0:00:04.2]} 40... Nxh6 {[%clk 0:00:31.8]} 41. Qxh6
{[%clk 0:00:01.9]} 41... Bf6 {[%clk 0:00:31.7]} 0-1